fUST/lending_fUST_20250727
["ID","MTS","AMOUNT","RATE_DAILY","PERIOD"]
[375166954,1753569046181,-283.73164874,0.00020547,2]
[375166955,1753569046191,-151.0,0.00020547,2]
[375166956,1753569046200,-806.09192829,0.00020574,2]
[375166957,1753569046210,-160.0,0.00020585,3]
[375166958,1753569046219,-372.6229834,0.00020585,3]
[375166959,1753569046229,-321.0,0.00020612,2]
[375166960,1753569046238,-372.98694394,0.0002062,2]
[375166961,1753569046248,-321.0,0.00020646,2]
[375166962,1753569046258,-223.64,0.00020668,2]
[375166963,1753569046267,-460.0,0.00020668,2]
[375166964,1753569046277,-1141.22,0.00020668,2]
[375166965,1753569046286,-1423.27,0.00020679,2]
[375166966,1753569046295,-460.0,0.00020679,2]
[375166967,1753569046305,-1123.8,0.00020679,2]
[375166968,1753569046315,-776.95,0.00020679,2]
[375166969,1753569046324,-460.0,0.00020679,2]
[375166970,1753569046333,-460.0,0.0002068,2]
[375166971,1753569046345,-460.0,0.0002068,2]
[375166972,1753569046355,-460.0,0.0002068,2]
[375166973,1753569046364,-460.0,0.0002068,2]
[375166974,1753569046374,-460.0,0.0002068,2]
[375166975,1753569046383,-460.0,0.0002068,2]
[375166976,1753569046392,-460.0,0.0002068,2]
[375166977,1753569046402,-497.18,0.0002068,2]
[375166978,1753569046412,-460.0,0.0002068,2]
[375166979,1753569046421,-179.93,0.0002068,2]
[375166980,1753569046430,-460.0,0.0002068,2]
[375166981,1753569046444,-1117.04,0.0002068,2]
[375166982,1753569046454,-460.0,0.0002068,2]
[375166983,1753569046464,-460.0,0.0002068,2]
[375166984,1753569046475,-3269.84,0.0002068,2]
[375166985,1753569046485,-460.0,0.0002068,2]
[375166986,1753569046496,-218.480129,0.00020681,2]
[375166987,1753569046505,-218.480129,0.00020681,2]
[375166988,1753569046515,-151.0,0.00020681,2]
[375166989,1753569046525,-151.0,0.00020681,2]
[375166990,1753569046535,-460.0,0.00020681,2]
[375166991,1753569046544,-891.69,0.00020681,2]
[375166992,1753569046553,-460.0,0.00020681,2]
[375166993,1753569046563,-460.0,0.00020681,2]
[375166994,1753569046574,-460.0,0.00020681,2]
[375166995,1753569046584,-933.98,0.00020681,2]
[375166996,1753569046595,-460.0,0.00020681,2]
[375166997,1753569046605,-1275.34762257,0.00020728,3]
[375166998,1753569046615,-321.0,0.0002074,2]
[375166999,1753569046624,-1500.0,0.00020768,2]
[375167000,1753569046634,-500.0,0.00020768,2]
[375167001,1753569046643,-460.0,0.00020779,2]
[375167002,1753569046653,-460.0,0.00020779,2]
[375167003,1753569046663,-502.7,0.00020779,2]
[375167004,1753569046674,-549.61,0.00020779,2]
[375167005,1753569046686,-460.0,0.00020779,2]
[375167006,1753569046695,-546.47,0.00020779,2]
[375167007,1753569046705,-460.0,0.00020779,2]
[375167008,1753569046714,-460.0,0.00020779,2]
[375167009,1753569046724,-460.0,0.00020779,2]
[375167010,1753569046733,-460.0,0.00020781,2]
[375167011,1753569046743,-460.0,0.00020781,2]
[375167012,1753569046753,-460.0,0.00020781,2]
[375167013,1753569046764,-460.0,0.00020781,2]
[375167014,1753569046774,-460.0,0.00020781,2]
[375167015,1753569046784,-460.0,0.00020781,2]
[375167016,1753569046795,-460.0,0.00020781,2]
[375167017,1753569046805,-151.0,0.00020781,2]
[375167018,1753569046815,-2730.94,0.00020781,2]
[375167019,1753569046824,-718.1,0.00020781,2]
[375167020,1753569046834,-160.0,0.00020786,2]
[375167021,1753569046844,-151.0,0.00020789,2]
[375167022,1753569046855,-771.88,0.00020789,2]
[375167023,1753569046866,-460.0,0.00020789,2]
[375167024,1753569046875,-965.91,0.0002079,2]
[375167025,1753569046885,-460.0,0.0002079,2]
[375167026,1753569046895,-758.93,0.0002079,2]
[375167027,1753569046905,-1123.86,0.0002079,2]
[375167028,1753569046916,-868.98,0.0002079,2]
[375167029,1753569046925,-151.0,0.00020792,2]
[375167030,1753569046935,-321.0,0.00020799,2]
[375167031,1753569046945,-857.63921963,0.00020821,2]
[375167032,1753569046955,-618.54253975,0.00020821,2]
[375167033,1753569046965,-1000.0,0.00020821,2]
[375167034,1753569046974,-1000.0,0.00020821,2]
[375167035,1753569046983,-1000.0,0.00020821,2]
[375167036,1753569046993,-500.0,0.00020821,2]
[375167037,1753569047003,-1000.0,0.00020821,2]
[375167038,1753569047012,-1000.0,0.00020821,2]
[375167039,1753569047021,-563.69699447,0.00020821,2]
[375167040,1753569047031,-1000.0,0.00020821,2]
[375167041,1753569047041,-439.56988204,0.00020821,2]
[375167042,1753569047051,-1000.0,0.00020821,2]
[375167043,1753569047060,-1000.0,0.00020821,2]
[375167044,1753569047070,-500.0,0.00020821,2]
[375167045,1753569047079,-151.0,0.00020821,2]
[375167046,1753569047089,-151.0,0.00020821,2]
[375167047,1753569047100,-151.0,0.00020821,2]
[375167048,1753569047110,-500.0,0.00020821,2]
[375167049,1753569047119,-151.0,0.00020821,2]
[375167050,1753569047128,-218.480129,0.00020821,2]
[375167051,1753569047138,-218.480129,0.00020821,2]
[375167052,1753569047147,-169.793788,0.00020821,2]
[375167053,1753569047157,-151.0,0.00020821,2]
[375167054,1753569047166,-321.0,0.00020837,2]
[375167055,1753569047176,-429.9056391,0.00020849,2]
[375167056,1753569047186,-429.9056391,0.00020849,2]
[375167057,1753569047195,-429.9056391,0.00020849,2]
[375167058,1753569047205,-429.7456075,0.00020849,2]
[375167059,1753569047215,-321.0,0.00020857,2]
[375167060,1753569047224,-2196.90214757,0.00020859,2]
[375167061,1753569047233,-321.0,0.00020874,2]
[375167062,1753569047242,-321.0,0.00020876,2]
[375167063,1753569047252,-1275.34762257,0.00020934,4]
[375167064,1753569047261,-460.0,0.00020942,2]
[375167065,1753569047271,-1141.22,0.00020942,2]
[375167066,1753569047282,-321.0,0.00020943,2]
[375167067,1753569047291,-321.0,0.00020944,2]
[375167068,1753569047300,-1423.27,0.00020953,2]
[375167069,1753569047310,-281.03,0.00020953,2]
[375167070,1753569047319,-1123.8,0.00020953,2]
[375167071,1753569047328,-776.95,0.00020953,2]
[375167072,1753569047338,-460.0,0.00020953,2]
[375167073,1753569047352,-460.0,0.00020954,2]
[375167074,1753569047362,-460.0,0.00020954,2]
[375167075,1753569047371,-460.0,0.00020954,2]
[375167076,1753569047383,-460.0,0.00020954,2]
[375167077,1753569047392,-460.0,0.00020954,2]
[375167078,1753569047401,-460.0,0.00020954,2]
[375167079,1753569047410,-460.0,0.00020954,2]
[375167080,1753569047421,-497.18,0.00020954,2]
[375167081,1753569047431,-410.24,0.00020954,2]
[375167082,1753569047442,-460.0,0.00020954,2]
[375167083,1753569047451,-1117.04,0.00020954,2]
[375167084,1753569047462,-460.0,0.00020954,2]
[375167085,1753569047471,-460.0,0.00020954,2]
[375167086,1753569047481,-3269.84,0.00020954,2]
[375167087,1753569047490,-460.0,0.00020954,2]
[375167088,1753569047500,-460.0,0.00020955,2]
[375167089,1753569047509,-891.69,0.00020955,2]
[375167090,1753569047518,-460.0,0.00020955,2]
[375167091,1753569047527,-460.0,0.00020955,2]
[375167092,1753569047536,-165.910144,0.00020955,2]
[375167093,1753569047546,-460.0,0.00020955,2]
[375167094,1753569047556,-933.98,0.00020955,2]
[375167095,1753569047565,-574.27,0.00020955,2]
[375167096,1753569047574,-321.0,0.00020967,2]
[375167097,1753569047585,-4235.0,0.00020985,2]
[375167098,1753569047594,-3000.0,0.00021,2]
[375167099,1753569047604,-741.14122082,0.00021,2]
[375167100,1753569047613,-3000.0,0.0002101,2]
[375167101,1753569047623,-4235.0,0.00021014,2]
[375167102,1753569047632,-151.0,0.00021014,2]
[375167103,1753569047641,-3000.0,0.0002102,2]
[375167104,1753569047651,-3000.0,0.0002103,2]
[375167105,1753569047660,-576.28,0.00021032,3]
[375167106,1753569047669,-321.0,0.00021032,2]
[375167107,1753569047679,-2305.14,0.00021033,3]
[375167108,1753569047689,-1152.58,0.00021033,3]
[375167109,1753569047699,-161.737486,0.00021033,2]
[375167110,1753569047708,-321.0,0.00021035,2]
[375167111,1753569047717,-3000.0,0.0002104,2]
[375167112,1753569047727,-151.0,0.0002104,2]
[375167113,1753569047736,-3000.0,0.0002105,2]
[375167114,1753569047746,-269.46138922,0.00021053,2]
[375167115,1753569047755,-460.0,0.00021053,2]
[375167116,1753569047764,-502.7,0.00021053,2]
[375167117,1753569047774,-549.61,0.00021053,2]
[375167118,1753569047783,-460.0,0.00021053,2]
[375167119,1753569047793,-546.47,0.00021053,2]
[375167120,1753569047802,-386.88,0.00021053,2]
[375167121,1753569047811,-460.0,0.00021053,2]
[375167122,1753569047820,-460.0,0.00021053,2]
[375167123,1753569047829,-218.480129,0.00021054,2]
[375167124,1753569047839,-218.480129,0.00021054,2]
[375167125,1753569047848,-460.0,0.00021055,2]
[375167126,1753569047857,-460.0,0.00021055,2]
[375167127,1753569047866,-460.0,0.00021055,2]
[375167128,1753569047876,-460.0,0.00021055,2]
[375167129,1753569047885,-460.0,0.00021055,2]
[375167130,1753569047894,-460.0,0.00021055,2]
[375167131,1753569047904,-460.0,0.00021055,2]
[375167132,1753569047914,-2730.94,0.00021055,2]
[375167133,1753569047923,-718.1,0.00021055,2]
[375167134,1753569048004,-3000.0,0.0002106,2]
[375167135,1753569048023,-771.88,0.00021063,2]
[375167136,1753569048032,-460.0,0.00021063,2]
[375167137,1753569048041,-965.91,0.00021064,2]
[375167138,1753569048050,-460.0,0.00021064,2]
[375167139,1753569048059,-758.93,0.00021064,2]
[375167140,1753569048069,-1123.86,0.00021064,2]
[375167141,1753569048078,-868.98,0.00021064,2]
[375167142,1753569048087,-3000.0,0.0002107,2]
[375167143,1753569048096,-183.492596,0.00021073,2]
[375167144,1753569048106,-3000.0,0.0002108,2]
[375167145,1753569048116,-3000.0,0.0002109,2]
[375167146,1753569048125,-500.0,0.00021095,2]
[375167147,1753569048135,-151.0,0.00021095,2]
[375167148,1753569048144,-245.0,0.00021095,2]
[375167149,1753569048153,-151.0,0.00021095,2]
[375167150,1753569048162,-500.0,0.00021095,2]
[375167151,1753569048172,-157.59052775,0.00021095,2]
[375167152,1753569048181,-3000.0,0.000211,2]
[375167153,1753569048192,-151.0,0.000211,2]
[375167154,1753569048202,-321.0,0.00021106,2]
[375167155,1753569048211,-3000.0,0.0002111,2]
[375167156,1753569048220,-3000.0,0.0002112,2]
[375167157,1753569048230,-218.480129,0.0002112,2]
[375167158,1753569048239,-218.480129,0.0002112,2]
[375167159,1753569048248,-3000.0,0.0002113,2]
[375167160,1753569048258,-3000.0,0.0002114,2]
[375167161,1753569048268,-1275.34762257,0.00021141,4]
[375167162,1753569048278,-372.98694394,0.00021148,2]
[375167163,1753569048287,-3000.0,0.0002115,2]
[375167164,1753569048297,-321.0,0.00021159,2]
[375167165,1753569048306,-3000.0,0.0002116,2]
[375167166,1753569048316,-3000.0,0.0002117,2]
[375167167,1753569048325,-321.0,0.00021173,2]
[375167168,1753569048335,-2157.0,0.00021179,2]
[375167169,1753569048347,-969.0,0.00021179,2]
[375167170,1753569048357,-421.197,0.00021179,2]
[375167171,1753569048367,-3000.0,0.0002118,2]
[375167172,1753569048377,-4938.0868022,0.00021188,2]
[375167173,1753569048387,-3000.0,0.0002119,2]
[375167174,1753569048397,-575.94,0.00021195,2]
[375167175,1753569048407,-3000.0,0.000212,2]
[375167176,1753569048416,-151.0,0.000212,2]
[375167177,1753569048426,-3000.0,0.0002121,2]
[375167178,1753569048439,-334.43927572,0.00021215,2]
[375167179,1753569048449,-500.0,0.00021216,2]
[375167180,1753569048458,-460.0,0.00021216,2]
[375167181,1753569048468,-1141.22,0.00021216,2]
[375167182,1753569048478,-3000.0,0.0002122,2]
[375167183,1753569048488,-1423.27,0.00021227,2]
[375167184,1753569048497,-47.47970603,0.00021227,2]
[375167185,1753569048577,-460.0,0.00019572,2]
[375167186,1753569048587,-40.0,0.00019846,2]
[375167188,1753569209868,7749.35852499,0.00019483,2]
[375167189,1753569209891,2250.64147501,0.00019483,2]
[375167192,1753569393166,161.762004,0.00013699,2]
[375167193,1753569401400,209.02454736,0.00019484,2]
[375167194,1753569447806,160.22889375,0.000195,2]
[375167199,1753569681698,182.89647894,0.00019479,2]
[375167205,1753569966966,160.03441909,0.00019472,2]
[375167208,1753570029084,-938.20436626,0.00019569,2]
[375167209,1753570043664,197.87053434,0.00019469,2]
[375167248,1753570232517,-538.1,0.00019568,2]
[375167347,1753570238388,-203.9,0.00019568,2]
[375167349,1753570238398,-1200.0,0.00019569,2]
[375167351,1753570238408,-460.0,0.00019569,2]
[375167353,1753570238417,-460.0,0.00019569,2]
[375167355,1753570238427,-300.0,0.00019569,2]
[375167357,1753570238437,-300.0,0.00019569,2]
[375167359,1753570238446,-300.0,0.00019569,2]
[375167361,1753570238456,-300.0,0.00019569,2]
[375167363,1753570238466,-460.0,0.0001957,2]
[375167365,1753570238476,-460.0,0.0001957,2]
[375167367,1753570238485,-356.1,0.0001957,2]
[375167558,1753570240444,-103.9,0.0001957,2]
[375167559,1753570240455,-460.0,0.0001957,2]
[375167560,1753570240465,-460.0,0.0001957,2]
[375167561,1753570240474,-460.0,0.0001957,2]
[375167562,1753570240483,-460.0,0.0001957,2]
[375167563,1753570240492,-123.64097597,0.0001957,2]
[375167565,1753570240503,-336.35902403,0.0001957,2]
[375167567,1753570240513,-343.50467699,0.0001957,2]
[375167569,1753570240524,-263.7357614,0.0001957,2]
[375167571,1753570240533,-56.43589611,0.0001957,2]
[375167572,1753570240545,-354.99826368,0.0001957,2]
[375167573,1753570240554,-13395.28397074,0.0001957,2]
[375167574,1753570240564,-460.0,0.00019571,2]
[375167575,1753570240573,-460.0,0.00019571,2]
[375167576,1753570240582,-460.0,0.00019571,2]
[375167577,1753570240591,-460.0,0.00019571,2]
[375167578,1753570240601,-460.0,0.00019571,2]
[375167579,1753570240610,-460.0,0.00019571,2]
[375167580,1753570240619,-204.69910929,0.00019571,2]
[375167581,1753570240629,-500.0,0.00019571,2]
[375167582,1753570240638,-460.0,0.00019571,2]
[375167583,1753570240647,-460.0,0.00019571,2]
[375167584,1753570240656,-460.0,0.00019571,2]
[375167585,1753570240665,-1008.15,0.00019571,2]
[375167586,1753570240674,-460.0,0.00019571,2]
[375167588,1753570240684,-840.88,0.00019571,2]
[375167590,1753570240693,-460.0,0.00019571,2]
[375167592,1753570240702,-460.0,0.00019571,2]
[375167594,1753570240714,-460.0,0.00019571,2]
[375167596,1753570240723,-460.0,0.00019571,2]
[375167598,1753570240733,-582.71,0.00019571,2]
[375167600,1753570240742,-460.0,0.00019571,2]
[375167602,1753570240752,-370.38887953,0.00019571,2]
[375167604,1753570240763,-460.0,0.00019571,2]
[375167606,1753570240772,-460.0,0.00019571,2]
[375167608,1753570240781,-592.4,0.00019571,2]
[375167610,1753570240791,-460.0,0.00019571,2]
[375167612,1753570240801,-460.0,0.00019571,2]
[375167614,1753570240811,-460.0,0.00019571,2]
[375167616,1753570240820,-460.0,0.00019571,2]
[375167618,1753570240833,-460.0,0.00019571,2]
[375167620,1753570240843,-904.37,0.00019571,2]
[375167622,1753570240852,-460.0,0.00019571,2]
[375167624,1753570240862,-457.13,0.00019571,2]
[375167626,1753570240875,-460.0,0.00019571,2]
[375167628,1753570240885,-460.0,0.00019571,2]
[375167631,1753570240903,-460.0,0.00019572,2]
[375167633,1753570240915,-460.0,0.00019572,2]
[375167635,1753570240926,-460.0,0.00019572,2]
[375167637,1753570240935,-460.0,0.00019572,2]
[375167639,1753570240946,-460.0,0.00019572,2]
[375167641,1753570240955,-460.0,0.00019572,2]
[375167643,1753570240965,-460.0,0.00019572,2]
[375167645,1753570240975,-460.0,0.00019572,2]
[375167647,1753570240985,-463.18029216,0.00019572,2]
[375167649,1753570240996,-460.0,0.00019572,2]
[375167651,1753570241006,-460.0,0.00019572,2]
[375167653,1753570241016,-449.22559505,0.00019572,2]
[375167655,1753570241026,-460.0,0.00019572,2]
[375167657,1753570241035,-460.0,0.00019572,2]
[375167659,1753570241045,-460.0,0.00019572,2]
[375167661,1753570241055,-391.32053451,0.00019572,2]
[375167663,1753570241065,-494.2,0.00019572,2]
[375167665,1753570241076,-668.76,0.00019572,2]
[375167667,1753570241086,-365.40579753,0.00019572,2]
[375168189,1753570246344,-460.0,0.00019571,2]
[375168192,1753570246354,-94.59420247,0.00019572,2]
[375168193,1753570246363,-460.0,0.00019572,2]
[375168196,1753570246373,-460.0,0.00019572,2]
[375168198,1753570246383,-460.0,0.00019572,2]
[375168200,1753570246393,-468.0,0.00019572,2]
[375168202,1753570246403,-460.0,0.00019572,2]
[375168204,1753570246412,-460.0,0.00019572,2]
[375168206,1753570246422,-460.0,0.00019572,2]
[375168208,1753570246431,-460.0,0.00019572,2]
[375168210,1753570246441,-460.0,0.00019572,2]
[375168212,1753570246451,-460.0,0.00019572,2]
[375168214,1753570246461,-460.0,0.00019572,2]
[375168216,1753570246470,-500.0,0.00019572,2]
[375168218,1753570246480,-460.0,0.00019572,2]
[375168220,1753570246490,-389.85782865,0.00019572,2]
[375168221,1753570246499,-460.0,0.00019572,2]
[375168223,1753570246509,-216.67103937,0.00019572,2]
[375168225,1753570246518,-460.0,0.00019572,2]
[375168227,1753570246527,-460.0,0.00019572,2]
[375168229,1753570246537,-460.0,0.00019572,2]
[375168231,1753570246546,-460.0,0.00019572,2]
[375168233,1753570246558,-460.0,0.00019572,2]
[375168235,1753570246568,-460.0,0.00019572,2]
[375168238,1753570246578,-500.07,0.00019572,2]
[375168239,1753570246587,-460.0,0.00019572,2]
[375168242,1753570246597,-460.0,0.00019572,2]
[375168244,1753570246607,-2658.37,0.00019578,2]
[375168245,1753570246617,-837.78,0.00019578,2]
[375168247,1753570246626,-460.0,0.00019579,2]
[375168249,1753570246636,-460.0,0.00019579,2]
[375168252,1753570246646,-460.0,0.00019579,2]
[375168253,1753570246655,-598.51,0.00019579,2]
[375168255,1753570246665,-700.49,0.00019579,2]
[375168257,1753570246675,-578.91,0.00019579,2]
[375168259,1753570246684,-233.72229668,0.00019582,2]
[375168261,1753570246693,-500.0,0.00019582,2]
[375168263,1753570246703,-500.0,0.00019582,2]
[375168265,1753570246715,-500.0,0.00019582,2]
[375168267,1753570246725,-191.43767432,0.00019583,2]
[375168269,1753570246734,-500.0,0.00019583,2]
[375168271,1753570246744,-500.0,0.00019583,2]
[375168273,1753570246754,-500.0,0.00019583,2]
[375168275,1753570246763,-500.0,0.00019583,2]
[375168277,1753570246773,-405.43571488,0.00019583,2]
[375168279,1753570246782,-500.0,0.00019583,2]
[375168281,1753570246793,-500.0,0.00019583,2]
[375168283,1753570246803,-500.0,0.00019583,2]
[375168286,1753570246813,-500.0,0.00019583,2]
[375168288,1753570246823,-500.0,0.00019583,2]
[375168290,1753570246833,-500.0,0.00019583,2]
[375168292,1753570246842,-500.0,0.00019583,2]
[375168294,1753570246854,-500.0,0.00019583,2]
[375168296,1753570246864,-500.0,0.00019583,2]
[375168298,1753570246874,-500.0,0.00019583,2]
[375168300,1753570246883,-500.0,0.00019583,2]
[375168302,1753570246893,-500.0,0.00019583,2]
[375168304,1753570246903,-500.0,0.00019583,2]
[375168306,1753570246912,-500.0,0.00019583,2]
[375168308,1753570246921,-500.0,0.00019583,2]
[375168310,1753570246931,-464.89163371,0.00019583,2]
[375168312,1753570246944,-35.10836629,0.00019583,2]
[375168314,1753570246955,-500.0,0.00019583,2]
[375168316,1753570246966,-500.0,0.00019583,2]
[375168318,1753570246976,-500.0,0.00019583,2]
[375168320,1753570246985,-500.0,0.00019583,2]
[375168322,1753570246995,-356.25770164,0.00019583,2]
[375168324,1753570247004,-500.0,0.00019583,2]
[375168326,1753570247014,-500.0,0.00019583,2]
[375168328,1753570247023,-500.0,0.00019583,2]
[375168330,1753570247032,-500.0,0.00019583,2]
[375168332,1753570247042,-500.0,0.00019583,2]
[375168334,1753570247051,-460.0,0.00019584,2]
[375168336,1753570247060,-172.80804998,0.00019584,2]
[375168338,1753570247070,-461.55921139,0.00019584,2]
[375168340,1753570247079,-477.29016809,0.00019584,2]
[375168342,1753570247089,-460.0,0.00019584,2]
[375168344,1753570247100,-460.0,0.00019584,2]
[375168346,1753570247110,-460.0,0.00019584,2]
[375168348,1753570247119,-460.0,0.00019584,2]
[375168350,1753570247129,-460.0,0.00019584,2]
[375168352,1753570247138,-460.0,0.00019584,2]
[375168354,1753570247148,-548.83486579,0.00019584,2]
[375168356,1753570247158,-460.0,0.00019584,2]
[375168358,1753570247168,-460.0,0.00019584,2]
[375168361,1753570247177,-500.57,0.00019584,2]
[375168363,1753570247187,-529.32,0.00019584,2]
[375168365,1753570247197,-460.0,0.00019584,2]
[375168367,1753570247207,-460.0,0.00019584,2]
[375168369,1753570247219,-460.0,0.00019584,2]
[375168371,1753570247229,-460.0,0.00019584,2]
[375168373,1753570247240,-460.0,0.00019584,2]
[375168374,1753570247249,-460.0,0.00019584,2]
[375168376,1753570247259,-460.0,0.00019584,2]
[375168378,1753570247268,-460.0,0.00019584,2]
[375168381,1753570247278,-542.69525169,0.00019584,2]
[375168383,1753570247288,-460.0,0.00019584,2]
[375168384,1753570247298,-460.0,0.00019584,2]
[375168386,1753570247307,-460.0,0.00019584,2]
[375168389,1753570247318,-460.0,0.00019584,2]
[375168391,1753570247328,-460.0,0.00019584,2]
[375168392,1753570247339,-460.0,0.00019584,2]
[375168394,1753570247350,-460.0,0.00019584,2]
[375168396,1753570247360,-460.0,0.00019584,2]
[375168399,1753570247371,-401.62842738,0.00019584,2]
[375168400,1753570247381,-2048.2,0.00019584,2]
[375168402,1753570247392,-299.65635903,0.00019584,2]
[375168403,1753570247401,-291.15966776,0.00019585,2]
[375168404,1753570247411,-460.98580716,0.00019585,2]
[375168405,1753570247420,-460.0,0.00019585,2]
[375168406,1753570247429,-438.05861878,0.00019585,2]
[375168776,1753570447921,161.762004,0.00013699,2]
[375168777,1753570889225,3609.07108579,0.00019355,2]
[375168779,1753571228379,-300.0,0.00019566,2]
[375168780,1753571228402,-459.758931,0.00019566,2]
[375168786,1753571356201,160.03441903,0.00019469,2]
[375168787,1753571409835,161.762004,0.00013699,2]
[375168835,1753571432711,-20.241069,0.00019566,2]
[375168837,1753571432721,-240.52772675,0.00019566,2]
[375168842,1753571438508,-59.47227325,0.00019566,2]
[375168843,1753571438518,-300.0,0.00019566,2]
[375168844,1753571438527,-300.0,0.00019566,2]
[375168845,1753571438538,-300.0,0.00019566,2]
[375168846,1753571438547,-1200.0,0.00019566,2]
[375168847,1753571438556,-300.0,0.00019566,2]
[375168848,1753571438566,-461.73,0.00019568,2]
[375168849,1753571438575,-1099.82,0.00019568,2]
[375168850,1753571438586,-460.0,0.00019568,2]
[375168851,1753571438598,-460.0,0.00019568,2]
[375168852,1753571438607,-460.0,0.00019568,2]
[375168853,1753571438618,-157.51340759,0.00019568,2]
[375168854,1753571438630,-940.09,0.00019568,2]
[375168855,1753571438639,-460.0,0.00019568,2]
[375168856,1753571438648,-460.0,0.00019568,2]
[375168857,1753571438657,-460.0,0.00019568,2]
[375168858,1753571438666,-460.0,0.00019568,2]
[375168859,1753571438675,-460.0,0.00019568,2]
[375168861,1753571438684,-650.67,0.00019568,2]
[375168862,1753571438693,-460.0,0.00019568,2]
[375168863,1753571438702,-587.25,0.00019568,2]
[375168864,1753571438711,-460.0,0.00019568,2]
[375168865,1753571438719,-460.0,0.00019568,2]
[375168866,1753571438728,-460.0,0.00019568,2]
[375168867,1753571438738,-460.0,0.00019568,2]
[375168868,1753571438747,-966.92,0.00019568,2]
[375168869,1753571438756,-460.0,0.00019568,2]
[375168870,1753571438765,-460.0,0.00019568,2]
[375168871,1753571438774,-460.0,0.00019568,2]
[375168872,1753571438787,-460.0,0.00019568,2]
[375168873,1753571438797,-160.68645504,0.00019568,2]
[375168874,1753571438807,-460.0,0.00019568,2]
[375168875,1753571438816,-460.0,0.00019568,2]
[375168876,1753571438826,-460.0,0.00019568,2]
[375168877,1753571438977,-460.0,0.00019569,2]
[375168878,1753571438986,-460.0,0.00019569,2]
[375168879,1753571438996,-460.0,0.00019569,2]
[375168880,1753571439006,-460.0,0.00019569,2]
[375168881,1753571439015,-460.0,0.00019569,2]
[375168882,1753571439025,-460.0,0.00019569,2]
[375168883,1753571439035,-460.0,0.00019569,2]
[375168884,1753571439045,-460.0,0.00019569,2]
[375168885,1753571439054,-460.0,0.00019569,2]
[375168886,1753571439064,-460.0,0.00019569,2]
[375168887,1753571439074,-460.0,0.00019569,2]
[375168888,1753571439084,-454.63921108,0.00019569,2]
[375168889,1753571439094,-460.0,0.00019569,2]
[375168890,1753571439103,-460.0,0.00019569,2]
[375168891,1753571439113,-282.02709983,0.00019569,2]
[375168892,1753571439123,-460.0,0.00019569,2]
[375168893,1753571439132,-460.0,0.00019569,2]
[375168894,1753571439142,-460.0,0.00019569,2]
[375168895,1753571439152,-460.0,0.00019569,2]
[375168896,1753571439162,-460.0,0.00019569,2]
[375168897,1753571439172,-460.0,0.00019569,2]
[375168898,1753571439182,-460.0,0.00019569,2]
[375168900,1753571439191,-460.0,0.00019569,2]
[375168901,1753571439203,-460.0,0.00019569,2]
[375168902,1753571439213,-460.0,0.00019569,2]
[375168903,1753571439222,-460.0,0.00019569,2]
[375168904,1753571439232,-460.0,0.00019569,2]
[375168905,1753571439242,-460.0,0.00019569,2]